bitfinex/quotes_BTCUSD_20241103
["timestamp","ask_amount","ask_price","bid_price","bid_amount"]
[1730642624843,0.293474,68149.0,68144.0,0.16879704]
[1730642624844,0.146746,68145.0,68144.0,0.16879704]
[1730642626826,0.160746,68145.0,68144.0,0.16879704]
[1730642627619,0.160746,68145.0,68144.0,0.18567674]
[1730642627867,0.173746,68145.0,68144.0,0.18667674]
[1730642628116,0.159746,68145.0,68144.0,0.16979704]
[1730642628604,0.173746,68145.0,68144.0,0.16979704]
[1730642629327,0.283746,68145.0,68144.0,0.024]
[1730642629960,0.30556841,68145.0,68144.0,0.024]
[1730642630195,0.43086841,68145.0,68144.0,0.024]
[1730642630415,0.43086734,68145.0,68144.0,0.024]
[1730642631285,0.43086734,68145.0,68144.0,0.001]
[1730642632155,0.43693895,68145.0,68144.0,0.001]
[1730642633845,0.41511841,68145.0,68144.0,0.001]
[1730642634052,0.43694307,68145.0,68144.0,0.001]
[1730642634257,0.41511759,68145.0,68144.0,0.001]
[1730642634460,0.48049218,68145.0,68144.0,0.001]
[1730642634684,0.43694094,68145.0,68144.0,0.001]
[1730642634903,0.43857694,68145.0,68144.0,0.001]
[1730642635116,0.31327694,68145.0,68144.0,0.001]
[1730642636662,0.30827694,68145.0,68144.0,0.001]
[1730642636877,0.30327694,68145.0,68144.0,0.16979704]
[1730642637929,0.06409894,68145.0,68144.0,0.18677674]
[1730642638140,0.06409894,68145.0,68144.0,0.18877674]
[1730642638346,0.06409894,68145.0,68144.0,0.15777674]
[1730642638828,0.06409894,68145.0,68144.0,0.20277674]
[1730642639033,0.04227559,68145.0,68144.0,0.42762474]
[1730642639670,0.02927559,68145.0,68144.0,0.42762474]
[1730642639887,0.02927559,68145.0,68144.0,0.42862474]
[1730642640359,0.01527559,68145.0,68144.0,0.42762474]
[1730642640601,0.02927559,68145.0,68144.0,0.42862474]
[1730642640843,0.0292736,68145.0,68144.0,0.42862474]
[1730642641371,0.0432736,68145.0,68144.0,0.42862474]
[1730642641771,0.015636,68145.0,68144.0,0.42862474]
[1730642642215,0.029636,68145.0,68144.0,0.42862474]
[1730642642687,0.029636,68145.0,68144.0,0.41164504]
[1730642642915,0.04326241,68145.0,68144.0,0.41164504]
[1730642643137,0.029636,68145.0,68144.0,0.41164504]
[1730642643343,0.029636,68145.0,68144.0,0.26289704]
[1730642643561,0.029636,68145.0,68144.0,0.36664504]
[1730642643996,0.029636,68145.0,68144.0,0.40584996]
[1730642644211,0.04325778,68145.0,68144.0,0.40584996]
[1730642644423,0.029636,68145.0,68144.0,0.40584996]
[1730642644624,0.029636,68145.0,68144.0,0.45524996]
[1730642645261,0.349,68152.0,68151.0,0.148732]
[1730642645463,0.349,68152.0,68151.0,0.47279824]
[1730642645869,0.21902447,68157.0,68156.0,0.002]
[1730642646028,0.23264181,68157.0,68156.0,0.31751904]
[1730642646224,0.01361734,68157.0,68156.0,0.31751904]
[1730642646904,0.02661734,68157.0,68156.0,0.31851904]
[1730642647099,0.02661734,68157.0,68156.0,0.45393436]
[1730642647302,0.0266169,68157.0,68156.0,0.45393436]
[1730642647507,0.0266169,68157.0,68156.0,0.30521236]
[1730642647736,0.0266169,68157.0,68156.0,0.16979704]
[1730642647953,0.0266169,68157.0,68156.0,0.17179704]
[1730642648173,0.0266169,68157.0,68156.0,0.16979704]
[1730642648600,0.0366169,68157.0,68156.0,0.17079704]
[1730642648853,0.0366169,68157.0,68156.0,0.24026474]
[1730642649052,0.0366169,68157.0,68156.0,0.24226474]
[1730642649273,0.1833369,68157.0,68156.0,0.17079704]
[1730642649864,0.0366169,68157.0,68156.0,0.31751904]
[1730642650056,0.0366169,68157.0,68156.0,0.17279704]
[1730642650252,0.0366169,68157.0,68156.0,0.31951904]
[1730642651108,0.023,68157.0,68156.0,0.36891904]
[1730642651306,0.023,68157.0,68156.0,0.50201794]
[1730642651902,0.013,68157.0,68156.0,0.50101794]
[1730642652313,0.016,68157.0,68156.0,0.30389594]
[1730642652510,0.02960942,68157.0,68156.0,0.17079704]
[1730642652925,0.16032942,68157.0,68156.0,0.16879704]
[1730642653167,0.16032942,68157.0,68156.0,0.14679704]
[1730642654136,0.18211125,68157.0,68156.0,0.14679704]
[1730642654408,0.16433157,68157.0,68156.0,0.17079704]
[1730642654634,0.15072,68157.0,68156.0,0.17079704]
[1730642654860,0.16033178,68157.0,68156.0,0.16979704]
[1730642655072,0.18211063,68157.0,68156.0,0.16979704]
[1730642655314,0.18611063,68157.0,68156.0,0.17079704]
[1730642655787,0.19529466,68157.0,68156.0,0.17079704]
[1730642656717,0.19529466,68157.0,68156.0,0.18787674]
[1730642656961,0.19529466,68157.0,68156.0,0.17079704]
[1730642657648,0.03939063,68157.0,68156.0,0.17079704]
[1730642657901,0.004,68157.0,68156.0,0.17079704]
[1730642658182,0.03940487,68157.0,68156.0,0.44635306]
[1730642658401,0.03940487,68157.0,68156.0,0.44341904]
[1730642658632,0.03940487,68157.0,68156.0,0.54665234]
[1730642659585,0.04104087,68157.0,68156.0,0.54665234]
[1730642660077,0.04104087,68157.0,68156.0,0.54865234]
[1730642660318,0.01925326,68157.0,68156.0,0.54865234]
[1730642661267,0.01925326,68157.0,68156.0,0.39993034]
[1730642661507,0.04104637,68157.0,68156.0,0.35263034]
[1730642661713,0.04104637,68157.0,68156.0,0.17079704]
[1730642663149,0.05022997,68157.0,68156.0,0.17079704]
[1730642663769,0.19694997,68157.0,68156.0,0.17079704]
[1730642664383,0.21964692,68157.0,68156.0,0.17079704]
[1730642664607,0.152356,68157.0,68156.0,0.17079704]
[1730642664808,0.19790062,68157.0,68156.0,0.18787674]
[1730642665013,0.152356,68157.0,68156.0,0.18787674]
[1730642665225,0.19699078,68157.0,68156.0,0.18787674]
[1730642665658,0.19699078,68157.0,68156.0,0.17079704]
[1730642666072,0.30699078,68157.0,68156.0,0.002]
[1730642666303,0.146745,68145.0,68144.0,0.000818]
[1730642666512,0.19138159,68145.0,68144.0,0.14661504]
[1730642666931,0.19638159,68145.0,68144.0,0.14661504]
[1730642667135,0.20138159,68145.0,68144.0,0.14661504]
[1730642667343,0.20431614,68145.0,68144.0,0.000818]
[1730642667584,0.30431614,68145.0,68144.0,0.000818]
[1730642667761,0.30138159,68145.0,68144.0,0.000818]
[1730642668165,0.31141357,68145.0,68144.0,0.001818]
[1730642668817,0.31141357,68145.0,68144.0,0.002818]
[1730642669701,0.30141357,68145.0,68144.0,0.001818]
[1730642670086,0.31541357,68145.0,68144.0,0.001818]
[1730642670713,0.30141357,68145.0,68144.0,0.001818]
[1730642670926,0.31541357,68145.0,68144.0,0.000818]
[1730642671348,0.275745,68145.0,68144.0,0.000818]
[1730642671542,0.3008676,68145.0,68144.0,0.001818]
[1730642671755,0.33335017,68145.0,68144.0,0.001818]
[1730642675620,0.70385017,68145.0,68144.0,0.001818]
[1730642675827,0.33335017,68145.0,68144.0,0.001818]
[1730642676036,0.22335017,68145.0,68144.0,0.17061504]
[1730642676379,0.22835017,68145.0,68144.0,0.17061504]
[1730642677263,0.32835017,68145.0,68144.0,0.17061504]
[1730642677931,0.32835017,68145.0,68144.0,0.001818]
[1730642678154,1.36900127,68145.0,68144.0,0.001818]
[1730642678364,1.78226471,68145.0,68144.0,1e-06]
[1730642678574,0.635882,68128.0,68127.0,0.21984247]
[1730642678791,2.7303919,68128.0,68127.0,0.21984247]
[1730642679013,2.77493417,68128.0,68127.0,0.000818]
[1730642679442,2.77493417,68128.0,68127.0,1e-06]
[1730642679443,2.49209393,68128.0,68127.0,1e-06]
[1730642679677,2.44857911,68128.0,68127.0,1e-06]
[1730642680416,0.516797,68121.0,68120.0,0.000818]
[1730642680598,0.56133927,68121.0,68120.0,0.000818]
[1730642681460,0.56133927,68121.0,68100.0,0.21985447]
[1730642681461,0.16181,68115.0,68100.0,0.21985447]
[1730642681655,0.30928682,68115.0,68100.0,0.21985447]
[1730642681875,0.30635227,68115.0,68100.0,0.21985447]
[1730642682882,0.38775227,68115.0,68100.0,0.21985447]
[1730642683262,0.40175227,68115.0,68100.0,0.21985447]
[1730642684458,0.75075227,68115.0,68100.0,0.21985447]
[1730642684815,0.76475227,68115.0,68100.0,0.21985447]
[1730642686349,0.67835227,68115.0,68100.0,0.21985447]
[1730642686570,0.57835227,68115.0,68101.0,0.00293652]
[1730642686965,0.57835227,68115.0,68100.0,0.21985447]
[1730642687611,0.56435227,68115.0,68100.0,0.21985447]
[1730642687825,0.66435227,68115.0,68101.0,0.00293641]
[1730642688036,0.65035227,68115.0,68101.0,0.00293641]
[1730642688276,0.66435227,68115.0,68101.0,0.00293641]
[1730642688500,0.65035227,68115.0,68101.0,0.00293641]
[1730642688938,0.67835227,68115.0,68100.0,0.21985447]
[1730642689441,0.67835227,68115.0,68101.0,0.00293641]
[1730642689612,0.66435227,68115.0,68101.0,0.00293641]
[1730642690022,0.66435227,68115.0,68101.0,0.00493641]
[1730642690245,0.66435227,68115.0,68100.0,0.21985447]
[1730642690446,0.66435227,68115.0,68101.0,0.00293641]
[1730642690657,0.65935227,68115.0,68101.0,0.00293641]
[1730642690785,0.65935227,68115.0,68114.0,0.16961504]
[1730642691030,0.57693127,68115.0,68114.0,0.16961504]
[1730642691251,0.57693127,68115.0,68114.0,0.17061504]
[1730642691252,0.56835227,68115.0,68114.0,0.17061504]
[1730642691455,0.57414678,68115.0,68114.0,0.17061504]
[1730642691682,0.5818344,68115.0,68114.0,0.17061504]
[1730642691873,0.54505238,68115.0,68114.0,0.17061504]
[1730642692046,0.41224238,68115.0,68114.0,0.17061504]
[1730642692323,0.54505238,68115.0,68114.0,0.17061504]
[1730642692496,0.55424313,68115.0,68114.0,0.17061504]
[1730642692692,0.55905238,68115.0,68114.0,0.17061504]
[1730642692895,0.55424313,68115.0,68114.0,0.17061504]
[1730642693324,0.54024313,68115.0,68114.0,0.16961504]
[1730642693523,0.5628344,68115.0,68114.0,0.16961504]
[1730642693724,0.55424313,68115.0,68114.0,0.17061504]
[1730642693933,0.20524313,68115.0,68114.0,0.17061504]
[1730642694134,0.20524313,68115.0,68114.0,0.16961504]
[1730642694335,0.20524313,68115.0,68114.0,0.18677654]
[1730642694498,0.20524313,68115.0,68114.0,0.18777654]
[1730642694692,0.20524313,68115.0,68114.0,0.17061504]
[1730642694913,0.21931396,68115.0,68114.0,0.17061504]
[1730642695121,0.21031396,68115.0,68114.0,0.16961504]
[1730642695350,0.22931396,68115.0,68114.0,0.024818]
[1730642695567,0.23224851,68115.0,68114.0,0.024818]
[1730642695997,0.33224851,68115.0,68114.0,0.001818]
[1730642696222,0.32931396,68115.0,68114.0,0.001818]
[1730642696430,0.14684,68101.0,68100.0,0.00083]
[1730642696647,0.19134396,68101.0,68100.0,0.14662704]
[1730642697530,0.20534396,68101.0,68100.0,0.16128974]
[1730642697743,0.21934396,68101.0,68100.0,0.14762704]
[1730642698192,0.21934396,68101.0,68100.0,0.17062704]
[1730642700970,0.21934396,68101.0,68100.0,0.39836904]
[1730642700971,0.07250396,68101.0,68100.0,0.39836904]
[1730642701188,0.07250396,68101.0,68100.0,0.25352704]
[1730642701604,0.028,68101.0,68100.0,0.40036904]
[1730642701813,0.028,68101.0,68100.0,0.57551614]
[1730642702464,0.05896571,68101.0,68100.0,0.57551614]
[1730642702686,0.07257522,68101.0,68100.0,0.57551614]
[1730642703543,0.07257522,68101.0,68100.0,0.44736904]
[1730642704016,0.04161209,68101.0,68100.0,0.44736904]
[1730642704240,0.06339144,68101.0,68100.0,0.44736904]
[1730642705089,0.028,68101.0,68100.0,0.44736904]
[1730642705315,0.06340576,68101.0,68100.0,0.44736904]
[1730642707058,0.06340576,68101.0,68100.0,0.29852704]
[1730642707259,0.04162971,68101.0,68100.0,0.17062704]
[1730642707471,0.06343724,68101.0,68100.0,0.17062704]
[1730642707995,0.21027724,68101.0,68100.0,0.17062704]
[1730642710075,0.21027724,68101.0,68100.0,0.14762704]
[1730642710700,0.22027724,68101.0,68100.0,0.00183]
[1730642710917,0.22321179,68101.0,68100.0,0.00183]
[1730642711510,0.22321179,68101.0,68093.0,0.00083]
[1730642711511,0.151855,68094.0,68093.0,0.00029519]
[1730642711711,0.18729224,68094.0,68093.0,0.14609223]
[1730642712251,0.18729224,68094.0,68093.0,0.16909223]
[1730642713531,0.19229761,68094.0,68093.0,0.16909223]
[1730642713754,0.20629761,68094.0,68093.0,0.16909223]
[1730642714016,0.45629761,68094.0,68093.0,0.00029519]
[1730642714659,0.44229761,68094.0,68093.0,0.00029519]
[1730642714962,0.45629761,68094.0,68093.0,0.00029519]
[1730642715614,0.55629761,68094.0,68093.0,0.00029519]
[1730642716100,0.57029761,68094.0,68093.0,0.00029519]
[1730642716733,0.534855,68094.0,68093.0,0.00029519]
[1730642716928,0.5422794,68094.0,68093.0,0.00029519]
[1730642717104,0.6198794,68094.0,68093.0,0.00029519]
[1730642717318,0.6478794,68094.0,68093.0,0.00029519]
[1730642717547,0.6338794,68094.0,68093.0,0.00029519]
[1730642717927,0.6198794,68094.0,68093.0,0.00029519]
[1730642718257,0.6478794,68094.0,68093.0,0.00029519]
[1730642718727,0.6338794,68094.0,68093.0,0.00029519]
[1730642719086,0.65688493,68094.0,68093.0,0.00029519]
[1730642719257,0.64288493,68094.0,68093.0,0.00029519]
[1730642719684,0.65688493,68094.0,68093.0,0.00029519]
[1730642720024,0.64288493,68094.0,68093.0,0.00029519]
[1730642720156,0.62146053,68094.0,68093.0,0.00029519]
[1730642720360,0.67085288,68094.0,68093.0,0.00029519]
[1730642721080,0.65685288,68094.0,68093.0,0.00029519]
[1730642721556,0.64285288,68094.0,68093.0,0.00029519]
[1730642721959,0.65685288,68094.0,68093.0,0.00029519]
[1730642722534,0.67085288,68094.0,68093.0,0.00029519]
[1730642722947,0.65685288,68094.0,68093.0,0.00029519]
[1730642723150,0.67085288,68094.0,68093.0,0.00029519]
[1730642723556,0.62146053,68094.0,68093.0,0.00029519]
[1730642723765,0.64784576,68094.0,68093.0,0.00029519]
[1730642723966,0.66184576,68094.0,68093.0,0.00029519]
[1730642724595,0.67584576,68094.0,68093.0,0.00029519]
[1730642725224,0.67584576,68094.0,68093.0,0.00029519]
[1730642725635,0.66184576,68094.0,68093.0,0.00029519]
[1730642725848,0.64784576,68094.0,68093.0,0.00029519]
[1730642726054,0.66184576,68094.0,68093.0,0.00029519]
[1730642726468,0.64784576,68094.0,68093.0,0.00029519]
[1730642726678,0.66184576,68094.0,68093.0,0.00029519]
[1730642727119,0.67584576,68094.0,68093.0,0.00029519]
[1730642728764,0.59324576,68094.0,68093.0,0.00029519]
[1730642728984,0.58824576,68094.0,68093.0,0.00029519]
[1730642729221,0.58824576,68094.0,68093.0,0.14609223]
[1730642729222,0.59324576,68094.0,68093.0,0.14609223]
[1730642729489,0.59324576,68094.0,68093.0,0.16909223]
[1730642730165,0.56524576,68094.0,68093.0,0.16909223]
[1730642730428,0.59324576,68094.0,68093.0,0.16909223]
[1730642730904,0.57924576,68094.0,68093.0,0.16909223]
[1730642733064,0.67324576,68094.0,68093.0,0.00029519]
[1730642733288,0.65924576,68094.0,68093.0,0.00029519]
[1730642733548,0.64524576,68094.0,68093.0,0.00029519]
[1730642733776,0.67324576,68094.0,68093.0,0.00029519]
[1730642736959,0.63786053,68094.0,68093.0,0.00029519]
[1730642737215,0.67328538,68094.0,68093.0,0.00029519]
[1730642738793,0.67332242,68094.0,68093.0,0.00029519]
[1730642740369,0.59332242,68094.0,68093.0,0.00029519]
[1730642740590,0.57031689,68094.0,68093.0,0.00029519]
[1730642741763,0.21531689,68094.0,68093.0,0.16909223]
[1730642741981,0.21031689,68094.0,68093.0,0.16909223]
[1730642742275,0.06346189,68094.0,68093.0,0.18882111]
[1730642742512,0.19631689,68094.0,68093.0,0.23662111]
[1730642742744,0.03546189,68094.0,68093.0,0.21889223]
[1730642742960,0.03546189,68094.0,68093.0,0.36574923]
[1730642742961,0.04946189,68094.0,68093.0,0.36574923]
[1730642743172,0.04946189,68094.0,68093.0,0.44054555]
[1730642743417,0.02763919,68094.0,68093.0,0.51944555]
[1730642744066,0.028,68094.0,68093.0,0.51944555]
[1730642744527,0.16867159,68103.0,68102.0,0.023]
[1730642744740,0.18231912,68103.0,68102.0,0.16879704]
[1730642744948,0.18731912,68103.0,68102.0,0.16879704]
[1730642745151,0.19231912,68103.0,68102.0,0.16879704]
[1730642745352,0.19231912,68103.0,68102.0,0.023]
[1730642745353,0.19025367,68103.0,68102.0,0.023]
[1730642745586,0.19231912,68103.0,68102.0,0.16879704]
[1730642746014,0.18731912,68103.0,68102.0,0.16879704]
[1730642746213,0.19231912,68103.0,68102.0,0.16879704]
[1730642746627,0.20631912,68103.0,68102.0,0.16879704]
[1730642746816,0.19229287,68103.0,68102.0,0.16879704]
[1730642746967,0.156836,68103.0,68102.0,0.16879704]
[1730642747169,0.20629301,68103.0,68102.0,0.16879704]
[1730642747378,0.19229301,68103.0,68102.0,0.16879704]
[1730642747811,0.22029301,68103.0,68102.0,0.16879704]
[1730642748043,0.21529301,68103.0,68102.0,0.16879704]
[1730642748206,0.20129301,68103.0,68102.0,0.16879704]
[1730642748731,0.21529301,68103.0,68102.0,0.16879704]
[1730642748939,0.19629301,68103.0,68102.0,0.16879704]
[1730642749166,0.18229301,68103.0,68102.0,0.16879704]
[1730642749370,0.20129301,68103.0,68102.0,0.16879704]
[1730642749565,0.18729301,68103.0,68102.0,0.16879704]
[1730642749795,0.20129301,68103.0,68102.0,0.16879704]
[1730642750006,0.21529301,68103.0,68102.0,0.16879704]
[1730642750211,0.20129301,68103.0,68102.0,0.16879704]
[1730642750435,0.19629301,68103.0,68102.0,0.16879704]
[1730642750627,0.21029301,68103.0,68102.0,0.17079704]
[1730642750838,0.21029301,68103.0,68102.0,0.16879704]
[1730642752076,0.19629301,68103.0,68102.0,0.16879704]
[1730642752277,0.18229301,68103.0,68102.0,0.16879704]
[1730642752431,0.19629301,68103.0,68102.0,0.16879704]
[1730642752631,0.18729301,68103.0,68102.0,0.16879704]
[1730642753365,0.20129301,68103.0,68102.0,0.16879704]
[1730642753564,0.21529301,68103.0,68102.0,0.16879704]
[1730642753899,0.20129301,68103.0,68102.0,0.16879704]
[1730642754518,0.20629301,68103.0,68102.0,0.023]
[1730642754757,0.20922756,68103.0,68102.0,0.023]
[1730642755344,0.22322756,68103.0,68102.0,0.023]
[1730642755562,0.19522756,68103.0,68102.0,0.023]
[1730642755689,0.19229301,68103.0,68102.0,0.023]
[1730642755893,0.22029301,68103.0,68102.0,0.023]
[1730642756085,0.20629301,68103.0,68102.0,0.023]
[1730642756283,0.19392901,68103.0,68102.0,0.023]
[1730642756491,0.20792901,68103.0,68102.0,0.023]
[1730642756696,0.22189154,68103.0,68102.0,0.023]
[1730642757047,0.20789154,68103.0,68102.0,0.023]
[1730642757684,0.22189154,68103.0,68102.0,0.023]
[1730642758403,0.20789154,68103.0,68102.0,0.023]
[1730642759097,0.19389154,68103.0,68102.0,0.023]
[1730642759334,0.20789154,68103.0,68102.0,0.023]
[1730642759556,0.22189154,68103.0,68102.0,0.023]
[1730642759732,0.20789154,68103.0,68102.0,0.023]
[1730642760253,0.186472,68103.0,68102.0,0.023]
[1730642760443,0.22190257,68103.0,68102.0,0.023]
[1730642762528,0.181472,68103.0,68102.0,0.16879704]
[1730642762733,0.21690586,68103.0,68102.0,0.18567674]
[1730642762953,0.21690586,68103.0,68102.0,0.23641333]
[1730642762954,0.06506986,68103.0,68102.0,0.23641333]
[1730642763173,0.06506986,68103.0,68102.0,0.38031474]
[1730642763174,0.04326441,68103.0,68102.0,0.38031474]
[1730642763394,0.04326441,68103.0,68102.0,0.38231474]
[1730642763897,0.02926441,68103.0,68102.0,0.38231474]
[1730642764296,0.04326441,68103.0,68102.0,0.38031474]
[1730642764583,0.029636,68103.0,68102.0,0.38031474]
[1730642764791,0.04326521,68103.0,68102.0,0.21659704]
[1730642765231,0.17610121,68103.0,68102.0,0.16879704]
[1730642765456,0.17610121,68103.0,68102.0,0.14579704]
[1730642765457,0.186472,68103.0,68102.0,0.14579704]
[1730642765867,0.20010359,68103.0,68102.0,0.14579704]
[1730642766749,0.20010359,68103.0,68102.0,0.16879704]
[1730642766975,0.19510359,68103.0,68102.0,0.16879704]
[1730642767201,0.20010359,68103.0,68102.0,0.16879704]
[1730642767521,0.181472,68103.0,68102.0,0.16879704]
[1730642767705,0.23111991,68103.0,68102.0,0.16879704]
[1730642767925,0.186472,68103.0,68102.0,0.16879704]
[1730642768158,0.2311193,68103.0,68102.0,0.16879704]
[1730642768385,0.25384669,68103.0,68102.0,0.16879704]
[1730642768591,0.2311193,68103.0,68102.0,0.16879704]
[1730642769217,0.25385471,68103.0,68102.0,0.16879704]
[1730642769701,0.25412187,68103.0,68102.0,0.16879704]
[1730642769914,0.24912187,68103.0,68102.0,0.16879704]
[1730642770149,0.25412187,68103.0,68102.0,0.16879704]
[1730642770584,0.25412187,68103.0,68102.0,0.16961504]
[1730642771001,0.25414739,68103.0,68102.0,0.16961504]
[1730642774312,0.20947457,68103.0,68102.0,0.16961504]
[1730642774559,0.27600051,68103.0,68102.0,0.16961504]
[1730642775108,0.27600051,68103.0,68102.0,0.16801504]
[1730642776910,0.27100051,68103.0,68102.0,0.18481654]
[1730642777050,0.24799794,68103.0,68102.0,0.18481654]
[1730642777260,0.24799794,68103.0,68102.0,0.16801504]
[1730642777601,0.48409128,68103.0,68102.0,0.000818]
[1730642777808,0.48115673,68103.0,68102.0,0.000818]
[1730642779921,0.20554479,68088.0,68087.0,0.14579704]
[1730642780136,0.19154479,68088.0,68087.0,0.14579704]
[1730642780338,0.20554479,68088.0,68087.0,0.16879704]
[1730642780525,0.21954479,68088.0,68087.0,0.16879704]
[1730642781144,0.20554479,68088.0,68087.0,0.16879704]
[1730642781354,0.16880255,68088.0,68087.0,0.16879704]
[1730642781582,0.19945955,68088.0,68087.0,0.16879704]
[1730642781813,0.19945955,68088.0,68074.0,1e-07]
[1730642781814,0.005,68076.0,68074.0,1e-07]
[1730642782103,1.10271439,68075.0,68074.0,1e-07]
[1730642782341,1.077053,68075.0,68074.0,1e-07]
[1730642782567,0.401907,68070.0,68069.0,0.0050001]
[1730642782773,0.53737002,68070.0,68069.0,0.0050001]
[1730642783475,0.546564,68070.0,68069.0,0.0050001]
[1730642783890,0.551564,68070.0,68069.0,0.0280001]
[1730642784320,0.54237002,68070.0,68069.0,0.0280001]
[1730642784528,0.55637002,68070.0,68069.0,0.0280001]
[1730642784734,0.55626518,68070.0,68069.0,0.0280001]
[1730642784942,0.57026518,68070.0,68069.0,0.0280001]
[1730642785755,0.57026518,68070.0,68069.0,0.17379714]
[1730642785756,0.21026518,68070.0,68069.0,0.17379714]
[1730642788397,0.174907,68070.0,68069.0,0.17379714]
[1730642788610,0.21022785,68070.0,68069.0,0.17379714]
[1730642789355,0.18849194,68070.0,68069.0,0.17379714]
[1730642789995,0.06332373,68070.0,68069.0,0.17379714]
[1730642790213,0.06332373,68070.0,68069.0,0.19117685]
[1730642790214,0.04158494,68070.0,68069.0,0.19117685]
[1730642790437,0.04158494,68070.0,68069.0,0.17379714]
[1730642790968,0.028,68070.0,68069.0,0.17379714]
[1730642791149,0.014,68070.0,68069.0,0.17379714]
[1730642791361,0.01358767,68073.0,68070.0,0.023]
[1730642791668,0.01358767,68072.0,68071.0,0.14579704]
[1730642791851,0.01358767,68072.0,68071.0,0.16879704]
[1730642792495,0.01358767,68072.0,68071.0,0.29609704]
[1730642792723,0.01358767,68075.0,68072.0,0.023]
[1730642792926,0.495893,68077.0,68071.0,0.27309704]
[1730642792927,0.146895,68076.0,68075.0,0.023]
[1730642793139,0.01358507,68076.0,68075.0,0.17079704]
[1730642793362,0.01358507,68076.0,68075.0,0.32063081]
[1730642793573,0.349,68077.0,68076.0,0.171894]
[1730642793828,0.349,68077.0,68076.0,0.31769104]
[1730642794049,0.349,68077.0,68076.0,0.39599104]
[1730642794916,0.363,68077.0,68076.0,0.42972539]
[1730642795190,0.363,68077.0,68076.0,0.47872539]
[1730642795474,0.36297889,68077.0,68076.0,0.47872539]
[1730642795739,0.33420859,68077.0,68076.0,0.47872539]
[1730642795967,0.32020859,68077.0,68076.0,0.47872539]
[1730642796176,0.30438493,68077.0,68076.0,0.47872539]
[1730642796387,0.21902447,68098.0,68090.0,0.276164]
[1730642796648,0.21902447,68098.0,68090.0,0.54063598]
[1730642796868,0.21902447,68098.0,68090.0,0.53769924]
[1730642797079,0.21902447,68098.0,68097.0,0.148849]
[1730642797302,0.21902447,68098.0,68097.0,0.29464604]
[1730642797509,0.3195,68100.0,68097.0,0.29464604]
[1730642797510,0.3195,68100.0,68099.0,0.148845]
[1730642797731,0.3195,68100.0,68099.0,0.46114644]
[1730642797946,0.001636,68103.0,68102.0,0.148838]
[1730642798173,0.001636,68103.0,68102.0,0.29463504]
[1730642798383,0.001636,68103.0,68102.0,0.31763504]
[1730642799020,0.001636,68103.0,68102.0,0.39593504]
[1730642799203,0.001636,68103.0,68102.0,0.50798578]
[1730642799456,0.015636,68103.0,68102.0,0.50798578]
[1730642800487,0.001636,68103.0,68102.0,0.50798578]
[1730642800694,0.012636,68103.0,68102.0,0.50898578]
[1730642800922,0.026636,68103.0,68102.0,0.50898578]
[1730642801161,0.012636,68103.0,68102.0,0.50898578]
[1730642801367,0.001636,68103.0,68102.0,0.50798578]
[1730642801633,0.015636,68103.0,68102.0,0.50798578]
[1730642803336,0.015636,68103.0,68102.0,0.50898578]
[1730642808802,0.015636,68103.0,68102.0,0.39693504]
[1730642818070,0.015636,68103.0,68102.0,0.31863504]
[1730642818900,0.015636,68103.0,68102.0,0.16979704]
[1730642819120,0.015636,68103.0,68102.0,0.31863504]
[1730642820914,0.015636,68103.0,68102.0,0.36823504]
[1730642821124,0.015636,68103.0,68102.0,0.47188824]
[1730642821577,0.015636,68103.0,68102.0,0.55048824]
[1730642822158,0.015636,68103.0,68102.0,0.50088824]
[1730642822362,0.015636,68103.0,68102.0,0.42228824]
[1730642823118,0.015636,68103.0,68102.0,0.16979704]
[1730642823326,0.02925887,68103.0,68102.0,0.14679704]
[1730642823521,0.1978903,68103.0,68102.0,0.14679704]
[1730642823721,0.20708135,68103.0,68102.0,0.14679704]
[1730642824181,0.21708135,68103.0,68102.0,0.14679704]
[1730642824419,0.29738135,68103.0,68102.0,0.14679704]
[1730642824818,0.28819796,68103.0,68102.0,0.14579704]
[1730642825123,0.29739079,68103.0,68102.0,0.14579704]
[1730642825308,0.29739079,68103.0,68102.0,0.14679704]
[1730642825309,0.29439079,68103.0,68102.0,0.14679704]
[1730642825728,0.29739079,68103.0,68102.0,0.14579704]
[1730642825940,0.28339079,68103.0,68102.0,0.14579704]
[1730642826145,0.005,68101.0,68100.0,0.000818]
[1730642826370,0.30439334,68101.0,68100.0,0.000818]
[1730642826572,0.30145879,68101.0,68100.0,0.000818]
[1730642827304,0.25684,68101.0,68100.0,0.000818]
[1730642827567,0.30439313,68101.0,68100.0,0.000818]
[1730642827781,0.25684,68101.0,68100.0,0.000818]
[1730642828006,0.30437149,68101.0,68100.0,0.000818]
[1730642828222,0.30143694,68101.0,68100.0,0.000818]
[1730642828638,0.44383694,68101.0,68100.0,0.000818]
[1730642829504,0.45783694,68101.0,68100.0,0.000818]
[1730642829712,0.45783694,68101.0,68078.0,0.21902447]
[1730642829713,0.146888,68079.0,68078.0,0.21902447]
[1730642829914,0.19148494,68079.0,68078.0,0.36482151]
[1730642830125,0.19148494,68079.0,68078.0,0.14579704]
[1730642830743,0.19148494,68079.0,68078.0,0.16879704]
[1730642831004,0.21948494,68079.0,68078.0,0.14579704]
[1730642831212,0.22448494,68079.0,68078.0,0.14579704]
[1730642832080,0.21948494,68079.0,68078.0,0.14579704]
[1730642832285,0.21529143,68079.0,68078.0,0.16879704]
[1730642834042,0.179888,68079.0,68078.0,0.16879704]
[1730642834246,0.2151499,68079.0,68078.0,0.16879704]
[1730642835708,0.21808445,68079.0,68078.0,0.16879704]
[1730642836228,0.2151499,68079.0,68078.0,0.16879704]
[1730642836653,0.21808445,68079.0,68078.0,0.16879704]
[1730642837153,0.21308445,68079.0,68078.0,0.16879704]
[1730642837395,0.30904166,68079.0,68078.0,0.023]
[1730642837601,0.30130256,68079.0,68078.0,0.023]
[1730642837805,0.31530256,68079.0,68078.0,0.023]
[1730642838014,0.32930256,68079.0,68078.0,0.023]
[1730642838436,0.31530256,68079.0,68078.0,0.023]
[1730642838663,0.32930256,68079.0,68078.0,0.023]
[1730642838877,0.146907,68070.0,68069.0,0.0058181]
[1730642839094,0.18212611,68070.0,68069.0,0.17461514]
[1730642839310,0.18506066,68070.0,68069.0,0.17461514]
[1730642840165,0.17384155,68070.0,68069.0,0.17461514]
[1730642840372,0.30101698,68070.0,68069.0,0.0288181]
[1730642840586,0.310007,68070.0,68069.0,0.0288181]
[1730642840796,0.34518154,68070.0,68069.0,0.0288181]
[1730642841010,0.45437826,68070.0,68069.0,0.0288181]
[1730642841231,0.70437826,68070.0,68069.0,0.0058181]
[1730642841932,0.69037826,68070.0,68069.0,0.0058181]
[1730642842347,0.67637826,68070.0,68069.0,0.0058181]
[1730642842600,0.69037826,68070.0,68069.0,0.0058181]
[1730642843046,0.67637826,68070.0,68069.0,0.0058181]
[1730642843264,0.69037826,68070.0,68069.0,0.0058181]